Workbook

Sheet INFORME 3
A1: AMERICA MOVIL PERU S.A.C
A3: INFORME 3: IMPUTACIÓN DEL CAPITAL INVERTIDO A LAS LÍNEAS DE NEGOCIO
A5: Periodo de reporte: Enero a Diciembre 2015
A6: Expresado en Miles de Nuevos Soles | B6: Código Plan Contable | C6: Código PCR | D6: 1. Acceso Instalación Telefonía Fija de Abonado Urbano | E6: 2. Prestación del servicio de voz Telefonía Fija local desde Abonado Urbano | F6: 3. Prestación del servicio de voz Telefonía Fija LD desde Abonado Urbano | G6: 4. Prestación del servicio de voz Telefonía Fija Local desde TUP Urbano | H6: 5. Prestación del servicio de voz Telefonía Fija LD desde TUP Urbano | I6: 6. Acceso Instalación Telefonía Fija de Abonado Rural | J6: 7. Prestación del servicio de voz Telefonía Fija Local desde Abonado Rural | K6: 8. Prestación del servicio de voz Telefonía Fija LD desde Abonado Rural | L6: 9. Prestación del servicio de voz Telefonía Fija Local desde TUP Rural | M6: 10. Prestación del servicio de voz Telefonía Fija LD desde TUP Rural | N6: 11. Instalación Televisión de Paga | O6: 12. Prestación de servicios Televisión de Paga | P6: 13. Instalación Internet Fijo | Q6: 14. Prestación de servicios Internet Fijo | R6: 15. Prestación de servicio voz móvil por Telefonía Móvil | S6: 16. Mensajes de Texto Telefonía Móvil | T6: 17. Roaming Internacional por Telefonía Móvil | U6: 18. Prestación de Internet Móvil | V6: 19. Servicios Suplementarios | W6: 20. Servicios de valor añadido (No incluye Internet) | X6: 21. Suministro de Equipos | Y6: 22. Instalación para Alquiler de circuitos y Transmisión de Datos para clientes privados y otros operadores | Z6: 23. Alquiler de Circuitos y Transmisión de Datos a clientes privados y otros operadores | AA6: 24. Provisión de acceso a EEDE | AB6: 25. Interconexión | AC6: 26. Otros | AD6: Total | AE6: Número de nota 1/.
A8: CAPITAL DE TRABAJO | D8: =+D9-D10 -> -30.6057399 | E8: =+E9-E10 -> -27785.23756 | F8: -1365.199017 | G8: -4628.308751 | H8: -398.3840221 | I8: 0 | J8: -0.04584762981 | K8: -0.0215919796 | L8: -22.54503746 | M8: -1.600351938 | N8: -606.187119 | O8: -44063.45488 | P8: -58.85406307 | Q8: -65534.88875 | R8: 168386.7229 | S8: -1422.823151 | T8: 776.7150167 | U8: -40167.09935 | V8: 18122.69676 | W8: -1489.550084 | X8: -155256.1205 | Y8: 80.18410525 | Z8: 8638.056654 | AA8: 0 | AB8: 31477.64897 | AC8: 35310.62713 | AD8: =SUM(D8:AC8) -> -80038.27427
A9: ACTIVO CORRIENTE | D9: 16.3277285 | E9: 14823.03048 | F9: 728.3143283 | G9: 905.8739351 | H9: 77.97355821 | I9: 0 | J9: 0.02445906076 | K9: 0.01151901512 | L9: 4.412618711 | M9: 0.3132282623 | N9: 267.212211 | O9: 19423.52919 | P9: 30.27118512 | Q9: 33707.42215 | R9: 576385.8334 | S9: 50835.12296 | T9: 11901.45494 | U9: 286004.1357 | V9: 22329.48284 | W9: 53219.16615 | X9: 248429.068 | Y9: 163.1821482 | Z9: 17579.2526 | AA9: 0 | AB9: 102873.1056 | AC9: 35819.49574 | AD9: 1475524.017
A10: PASIVO CORRIENTE | D10: 46.9334684 | E10: 42608.26804 | F10: 2093.513345 | G10: 5534.182686 | H10: 476.3575804 | I10: 0 | J10: 0.07030669057 | K10: 0.03311099471 | L10: 26.95765617 | M10: 1.9135802 | N10: 873.39933 | O10: 63486.98408 | P10: 89.12524819 | Q10: 99242.31089 | R10: 407999.1105 | S10: 52257.94611 | T10: 11124.73992 | U10: 326171.235 | V10: 4206.786073 | W10: 54708.71623 | X10: 403685.1884 | Y10: 82.99804295 | Z10: 8941.19595 | AA10: 0 | AB10: 71395.4566 | AC10: 508.8686098 | AD10: 1555562.291
A12: ACTIVO FIJO NETO | D12: =+D13+D45+D53+D60 -> 197.4683554 | E12: =+E13+E45+E53+E60 -> 179270.4632 | F12: 8808.269482 | G12: 9876.453437 | H12: 850.1207366 | I12: 0 | J12: 0.2958090897 | K12: 0.1393115381 | L12: 48.10936881 | M12: 3.415027442 | N12: 2689.548422 | O12: 195502.0023 | P12: 528.9606375 | Q12: 589005.6645 | R12: 361985.3646 | S12: 215674.489 | T12: 1056.017762 | U12: 1398224.331 | V12: 22052.87142 | W12: 225789.0961 | X12: 51.07708621 | Y12: 499.3173497 | Z12: 53790.35585 | AA12: 0 | AB12: 0 | AC12: 1305.140854 | AD12: =SUM(D12:AC12) -> 3267208.972 | AE12: 2
A13: Planta y Equipo de Comunicaciones | B13: NOTA 2 | C13: 301 | D13: =+D14+D22+D23+D32+D39 -> 95.59267567 | E13: 86783.23777 | F13: 4264.004964 | G13: 7475.148263 | H13: 643.4271764 | I13: 0 | J13: 0.143198551 | K13: 0.06743947734 | L13: 36.41232827 | M13: 2.584716935 | N13: 1757.349881 | O13: 127740.9314 | P13: 410.9878406 | Q13: 457641.1722 | R13: 82400.71955 | S13: 55052.22652 | T13: 707.6798431 | U13: 358157.8798 | V13: 20734.72201 | W13: 57634.04157 | X13: 51.07708621 | Y13: 430.7170444 | Z13: 46400.19639 | AA13: 0 | AB13: 0 | AC13: 1305.140854 | AD13: =SUM(D13:AC13) -> 1309725.46 | AE13: 2
A14: Equipos terminales | B14: NOTA 2 | C14: 3011 | D14: =+D15+D16+D17+D18+D19+D20+D21 -> 37.98563793 | E14: 34485.03377 | F14: 1694.3866 | G14: 4166.680414 | H14: 358.649129 | I14: 0 | J14: 0.05690277287 | K14: 0.02679840846 | L14: 20.29639142 | M14: 1.440732551 | N14: 351.8352274 | O14: 25574.73622 | P14: 81.72119205 | Q14: 90997.78247 | R14: 1097.56071 | S14: 79.82172248 | T14: 48.06758892 | U14: 501.212819 | V14: 7017.653832 | W14: 83.56516643 | X14: 49.25319342 | Y14: 165.6253472 | Z14: 17842.45303 | AA14: 0 | AB14: 0 | AC14: 527.4400675 | AD14: 185183.285 | AE14: 2
A15: Equipos terminales -Teléfonos de Abonados | B15: NOTA 2 | C15: 30111 | D15: 0.5544799605 | E15: 503.3813095 | F15: 24.73312194 | G15: 54.94762857 | H15: 4.729644986 | I15: 0 | J15: 0.0008306151739 | K15: 0.0003911789107 | L15: 0.2676563753 | M15: 0.01899949822 | N15: 15.70810259 | O15: 1141.814545 | P15: 1.353967446 | Q15: 1507.663214 | R15: 0 | S15: 0 | T15: 0 | U15: 0 | V15: 17.98608439 | W15: 0 | X15: 0.1186368144 | Y15: 0.3417386802 | Z15: 36.81475364 | AA15: 0 | AB15: 0 | AC15: 9.343476809 | AD15: 3319.778583 | AE15: 2
A16: Equipos terminales -Teléfonos Públicos | B16: NOTA 2 | C16: 30112 | D16: 5.171994758 | E16: 4695.364448 | F16: 230.7018939 | G16: 1593.343786 | H16: 137.1478742 | I16: 0 | J16: 0.007747687259 | K16: 0.003648779793 | L16: 7.761365388 | M16: 0.5509379243 | N16: 6.307018387 | O16: 458.4541826 | P16: 9.901861447 | Q16: 11025.87238 | R16: 262.8930676 | S16: 19.11928633 | T16: 11.51338216 | U16: 120.0529267 | V16: 403.719505 | W16: 20.01593419 | X16: 2.839401416 | Y16: 40.0305762 | Z16: 4312.405608 | AA16: 0 | AB16: 0 | AC16: 27.43251853 | AD16: 23390.61134 | AE16: 2
A17: Equipos Terminales -Televisión de Paga | B17: NOTA 2 | C17: 30113 | D17: 2.907168548 | E17: 2639.255545 | F17: 129.6771016 | G17: 710.8939331 | H17: 61.19055569 | I17: 0 | J17: 0.004354960469 | K17: 0.002050972274 | L17: 3.46284814 | M17: 0.2458091162 | N17: 212.1332878 | O17: 15419.86832 | P17: 6.975399472 | Q17: 7767.212737 | R17: 0 | S17: 0 | T17: 0 | U17: 0 | V17: 46.01477815 | W17: 0 | X17: 0.2913577407 | Y17: 0.8747943129 | Z17: 94.23966024 | AA17: 0 | AB17: 0 | AC17: 48.4130525 | AD17: 27143.66276 | AE17: 2
A18: Equipos Terminales -Internet Fijo | B18: NOTA 2 | C18: 30114 | D18: 29.35199466 | E18: 26647.03246 | F18: 1309.274482 | G18: 1807.495066 | H18: 155.5810541 | I18: 0 | J18: 0.04396950997 | K18: 0.02070747748 | L18: 8.804521512 | M18: 0.6249860126 | N18: 117.6868187 | O18: 8554.599168 | P18: 63.48996369 | Q18: 70697.03415 | R18: 0 | S18: 0 | T18: 0 | U18: 0 | V18: 6549.933465 | W18: 0 | X18: 46.00379745 | Y18: 124.378238 | Z18: 13398.99301 | AA18: 0 | AB18: 0 | AC18: 442.2510196 | AD18: 129952.5989 | AE18: 2
A19: Equipos Terminales -Telefonía Móvil | B19: NOTA 2 | C19: 30115 | D19: 0 | E19: 0 | F19: 0 | G19: 0 | H19: 0 | I19: 0 | J19: 0 | K19: 0 | L19: 0 | M19: 0 | N19: 0 | O19: 0 | P19: 0 | Q19: 0 | R19: 834.6676426 | S19: 60.70243615 | T19: 36.55420676 | U19: 381.1598923 | V19: 0 | W19: 63.54923224 | X19: 0 | Y19: 0 | Z19: 0 | AA19: 0 | AB19: 0 | AC19: 0 | AD19: 1376.63341 | AE19: 2
A20: Equipos Terminales -Internet Móvil | B20: NOTA 2 | C20: 30116 | D20: 0 | E20: 0 | F20: 0 | G20: 0 | H20: 0 | I20: 0 | J20: 0 | K20: 0 | L20: 0 | M20: 0 | N20: 0 | O20: 0 | P20: 0 | Q20: 0 | R20: 0 | S20: 0 | T20: 0 | U20: 0 | V20: 0 | W20: 0 | X20: 0 | Y20: 0 | Z20: 0 | AA20: 0 | AB20: 0 | AC20: 0 | AD20: 0 | AE20: 2
A21: Otros Equipos Terminales | B21: NOTA 2 | C21: 30117 | D21: 0 | E21: 0 | F21: 0 | G21: 0 | H21: 0 | I21: 0 | J21: 0 | K21: 0 | L21: 0 | M21: 0 | N21: 0 | O21: 0 | P21: 0 | Q21: 0 | R21: 0 | S21: 0 | T21: 0 | U21: 0 | V21: 0 | W21: 0 | X21: 0 | Y21: 0 | Z21: 0 | AA21: 0 | AB21: 0 | AC21: 0 | AD21: 0 | AE21: 2
A22: Planta y Equipo de Acceso Local | B22: NOTA 2 | C22: 3012 | D22: 8.270021309 | E22: 7507.889288 | F22: 368.8924038 | G22: 781.5591544 | H22: 67.27310044 | I22: 0 | J22: 0.01238855446 | K22: 0.005834400082 | L22: 3.807066762 | M22: 0.2702433598 | N22: 297.4719508 | O22: 21623.09536 | P22: 19.14309021 | Q22: 21316.12028 | R22: 97.95392907 | S22: 7.123844057 | T22: 4.289884971 | U22: 44.73170775 | V22: 138.2631587 | W22: 7.457934955 | X22: 0.9239601618 | Y22: 2.798315932 | Z22: 301.4563982 | AA22: 0 | AB22: 0 | AC22: 129.5204448 | AD22: 52728.32976 | AE22: 2
A23: Equipos Centrales y de agregación | B23: NOTA 2 | C23: 3013 | D23: =+D24+D25+D26+D27+D28+D29+D30+D31 -> 7.498802824 | E23: 6807.743208 | F23: 334.4914476 | G23: 417.9679284 | H23: 35.97680133 | I23: 0 | J23: 0.01123326334 | K23: 0.005290314761 | L23: 2.035971044 | M23: 0.1445227231 | N23: 149.6356689 | O23: 10876.94598 | P23: 33.99597327 | Q23: 37855.03004 | R23: 9682.429556 | S23: 4490.170403 | T23: 208.0755388 | U23: 29165.81904 | V23: 917.7277269 | W23: 4700.748436 | X23: 0.4042071874 | Y23: 17.50612581 | Z23: 1885.896289 | AA23: 0 | AB23: 0 | AC23: 87.2309458 | AD23: 107677.4911 | AE23: 2
A24: Centrales Locales | B24: NOTA 2 | C24: 30131 | D24: 0 | E24: 0 | F24: 0 | G24: 0 | H24: 0 | I24: 0 | J24: 0 | K24: 0 | L24: 0 | M24: 0 | N24: 0 | O24: 0 | P24: 0 | Q24: 0 | R24: 0 | S24: 0 | T24: 0 | U24: 0 | V24: 0 | W24: 0 | X24: 0 | Y24: 0 | Z24: 0 | AA24: 0 | AB24: 0 | AC24: 0 | AD24: 0 | AE24: 2
A25: Centrales de Larga Distancia Nacional | B25: NOTA 2 | C25: 30132 | D25: 0.2906451396 | E25: 263.8604483 | F25: 12.96451124 | G25: 2.798245794 | H25: 0.2408604253 | I25: 0 | J25: 0.000435388617 | K25: 0.0002050466333 | L25: 0.01363058509 | M25: 0.0009675625201 | N25: 5.106253164 | O25: 371.1711267 | P25: 6.993637279 | Q25: 7787.520811 | R25: 0 | S25: 0 | T25: 0.2652234377 | U25: 0 | V25: 418.5033103 | W25: 0 | X25: 0 | Y25: 7.943584378 | Z25: 855.7448098 | AA25: 0 | AB25: 0 | AC25: 0 | AD25: 9733.418706 | AE25: 2
A26: Centrales de Larga Distancia Internacional | B26: NOTA 2 | C26: 30133 | D26: 0.008301153345 | E26: 7.53615232 | F26: 0.3702810788 | G26: 0.07992105928 | H26: 0.006879245694 | I26: 0 | J26: 1.243519048e-05 | K26: 5.856363357e-06 | L26: 0.0003893048999 | M26: 2.763467801e-05 | N26: 0.1458403557 | O26: 10.60106645 | P26: 0.199746177 | Q26: 222.420387 | R26: 0 | S26: 0 | T26: 0.007575080835 | U26: 0 | V26: 11.95292706 | W26: 0 | X26: 0 | Y26: 0.2268777387 | Z26: 24.44103796 | AA26: 0 | AB26: 0 | AC26: 0 | AD26: 277.9974279 | AE26: 2
A27: Controladores | B27: NOTA 2 | C27: 30134 | D27: 5.629360569 | E27: 5110.581259 | F27: 251.1031441 | G27: 350.6847884 | H27: 30.18537095 | I27: 0 | J27: 0.008432824702 | K27: 0.003971445845 | L27: 1.708226939 | M27: 0.1212579175 | N27: 100.6337736 | O27: 7315.021394 | P27: 11.26492316 | Q27: 12543.6622 | R27: 3359.233418 | S27: 432.820694 | T27: 136.3416097 | U27: 2766.113695 | V27: 51.98240692 | W27: 453.1189281 | X27: 0.234044393 | Y27: 1.073469651 | Z27: 115.6425159 | AA27: 0 | AB27: 0 | AC27: 70.50753429 | AD27: 33107.67642 | AE27: 2
A28: Gateways | B28: NOTA 2 | C28: 30135 | D28: 0.0872587478 | E28: 79.2173313 | F28: 3.892261945 | G28: 7.358856441 | H28: 0.6334172989 | I28: 0 | J28: 0.0001307142641 | K28: 6.155999196e-05 | L28: 0.0358458571 | M28: 0.002544506168 | N28: 0.5853696298 | O28: 42.55024144 | P28: 0.2210292546 | Q28: 246.1194156 | R28: 1401.747098 | S28: 101.9441265 | T28: 61.38940894 | U28: 640.1227813 | V28: 24.92199553 | W28: 106.7250572 | X28: 0.1727069793 | Y28: 0.473042792 | Z28: 50.95985575 | AA28: 0 | AB28: 0 | AC28: 1.616309868 | AD28: 2770.776147 | AE28: 2
A29: Cabeceras | B29: NOTA 2 | C29: 30136 | D29: 1.02293975 | E29: 928.6697225 | F29: 45.62922988 | G29: 54.45322974 | H29: 4.687089356 | I29: 0 | J29: 0.001532371482 | K29: 0.0007216716306 | L29: 0.2652481004 | M29: 0.01882854762 | N29: 21.50749981 | O29: 1563.369986 | P29: 2.278881733 | Q29: 2537.569252 | R29: 0 | S29: 0 | T29: 0 | U29: 0 | V29: 0.8297701236 | W29: 0 | X29: -0.002544184897 | Y29: 0.01574981327 | Z29: 1.696692616 | AA29: 0 | AB29: 0 | AC29: 15.10710165 | AD29: 5177.120931 | AE29: 2
A30: Transmisión de Datos (Servicio Final) | B30: NOTA 2 | C30: 30137 | D30: 0.4602974637 | E30: 417.8782941 | F30: 20.53201938 | G30: 2.592886974 | H30: 0.2231840608 | I30: 0 | J30: 0.0006895290814 | K30: 0.0003247342974 | L30: 0.01263025807 | M30: 0.0008965546415 | N30: 21.65693231 | O30: 1574.232163 | P30: 13.03775566 | Q30: 14517.73798 | R30: 4921.44904 | S30: 3955.405583 | T30: 10.07172158 | U30: 25759.58256 | V30: 409.537317 | W30: 4140.90445 | X30: 0 | Y30: 7.773401437 | Z30: 837.4113771 | AA30: 0 | AB30: 0 | AC30: 0 | AD30: 56610.50151 | AE30: 2
A31: Otros equipos centrales | B31: NOTA 2 | C31: 30138 | D31: 0 | E31: 0 | F31: 0 | G31: 0 | H31: 0 | I31: 0 | J31: 0 | K31: 0 | L31: 0 | M31: 0 | N31: 0 | O31: 0 | P31: 0 | Q31: 0 | R31: 0 | S31: 0 | T31: 0 | U31: 0 | V31: 0 | W31: 0 | X31: 0 | Y31: 0 | Z31: 0 | AA31: 0 | AB31: 0 | AC31: 0 | AD31: 0 | AE31: 2
A32: Transmisión (Gran capacidad) | B32: NOTA 2 | C32: 3014 | D32: =+D33+D34+D35+D36+D37+D38 -> 18.11149996 | E32: 16442.41671 | F32: 807.8812023 | G32: 757.3341379 | H32: 65.18791986 | I32: 0 | J32: 0.02713116391 | K32: 0.01277744433 | L32: 3.689063851 | M32: 0.2618669627 | N32: 447.2312131 | O32: 32509.02529 | P32: 210.43118 | Q32: 234318.2994 | R32: 37274.92382 | S32: 29791.64369 | T32: 79.63564471 | U32: 194002.5424 | V32: 11869.38876 | W32: 31188.79907 | X32: 0.2368243321 | Y32: 225.6264398 | Z32: 24306.2383 | AA32: 0 | AB32: 0 | AC32: 221.5062667 | AD32: 614540.4506 | AE32: 2
A33: Cables de Transmisión (excluidos internacional) | B33: NOTA 2 | C33: 30141 | D33: 17.2291866 | E33: 15641.41381 | F33: 768.52475 | G33: 741.2361312 | H33: 63.80227578 | I33: 0 | J33: 0.02580945181 | K33: 0.01215498291 | L33: 3.610648563 | M33: 0.2563006798 | N33: 350.8939605 | O33: 25506.31598 | P33: 116.6311964 | Q33: 129870.5999 | R33: 13483.20114 | S33: 10836.55009 | T33: 34.31625601 | U33: 70573.04264 | V33: 11682.88577 | W33: 11344.75784 | X33: 0.2368243321 | Y33: 221.7521024 | Z33: 23888.86448 | AA33: 0 | AB33: 0 | AC33: 221.5062667 | AD33: 315367.6656 | AE33: 2
A34: Equipos de Transmisión (excluidos internacional) | B34: NOTA 2 | C34: 30142 | D34: 0.8274338281 | E34: 751.1808425 | F34: 36.90849666 | G34: 15.98963549 | H34: 1.376315981 | I34: 0 | J34: 0.001239502132 | K34: 0.0005837445653 | L34: 0.07788739916 | M34: 0.00552881096 | N34: 89.83846087 | O34: 6530.315217 | P34: 87.20828221 | Q34: 97107.74029 | R34: 5068.528668 | S34: 3907.121843 | T34: 7.92715898 | U34: 25429.56964 | V34: 64.11572992 | W34: 4090.356321 | X34: 0 | Y34: 1.551312827 | Z34: 167.1195064 | AA34: 0 | AB34: 0 | AC34: 0 | AD34: 143357.7604 | AE34: 2
A35: Equipos de Transmisión Radio | B35: NOTA 2 | C35: 30143 | D35: 0.002573023047 | E35: 2.335903554 | F35: 0.1147722142 | G35: 0.00379461954 | H35: 0.0003266238007 | I35: 0 | J35: 3.854407981e-06 | K35: 1.815236662e-06 | L35: 1.848403905e-05 | M35: 1.312083325e-06 | N35: 0.007011955314 | O35: 0.5096957143 | P35: 0.1609744494 | Q35: 179.2474823 | R35: 16321.7264 | S35: 13117.89418 | T35: 32.5876464 | U35: 85430.29812 | V35: 0.5830345482 | W35: 13733.0914 | X35: 0 | Y35: 0.01106654121 | Z35: 1.192174055 | AA35: 0 | AB35: 0 | AC35: 0 | AD35: 128819.7666 | AE35: 2
A36: Equipos de Transmisión por Satélite | B36: NOTA 2 | C36: 30144 | D36: 0.009881882327 | E36: 8.971207654 | F36: 0.4407910438 | G36: 0.03043309409 | H36: 0.002619544002 | I36: 0 | J36: 1.480313445e-05 | K36: 6.971548549e-06 | L36: 0.0001482431884 | M36: 1.052299311e-05 | N36: 0.7894427537 | O36: 57.38422027 | P36: 1.055476971 | Q36: 1175.28956 | R36: 1785.936014 | S36: 1435.370198 | T36: 3.568610805 | U36: 9347.849757 | V36: 110.146091 | W36: 1502.685557 | X36: 0 | Y36: 2.09067586 | Z36: 225.2238952 | AA36: 0 | AB36: 0 | AC36: 0 | AD36: 15656.84461 | AE36: 2
A37: Cables y Equipos internacionales (excluyendo satélite) | B37: NOTA 2 | C37: 30145 | D37: 0.01112534439 | E37: 10.10007723 | F37: 0.4962568874 | G37: 0.05439407265 | H37: 0.004681997379 | I37: 0 | J37: 1.666585002e-05 | K37: 7.848796003e-06 | L37: 0.0002649599392 | M37: 1.88080926e-05 | N37: 0.5159143913 | O37: 37.50157302 | P37: 0.221959958 | Q37: 247.1557679 | R37: 615.5316049 | S37: 494.7073772 | T37: 1.234100634 | U37: 3221.782257 | V37: 8.710005089 | W37: 517.9079457 | X37: 0 | Y37: 0.1653240456 | Z37: 17.80999448 | AA37: 0 | AB37: 0 | AC37: 0 | AD37: 5173.910668 | AE37: 2
A38: Otros equipos de transmisión | B38: NOTA 2 | C38: 30146 | D38: 0.03129928948 | E38: 28.4148724 | F38: 1.396135476 | G38: 0.01974937487 | H38: 0.001699937454 | I38: 0 | J38: 4.688657233e-05 | K38: 2.208127044e-05 | L38: 9.620153281e-05 | M38: 6.828833607e-06 | N38: 5.186422574 | O38: 376.9986031 | P38: 5.153289998 | Q38: 5738.266298 | R38: 0 | S38: 0 | T38: 0.001871885989 | U38: 0 | V38: 2.948125169 | W38: 0 | X38: 0 | Y38: 0.05595817395 | Z38: 6.028250553 | AA38: 0 | AB38: 0 | AC38: 0 | AD38: 6164.502748 | AE38: 2
A39: Otros Activos Fijos Brutos de Comunicaciones | B39: NOTA 2 | C39: 3015 | D39: =+D40+D41+D42+D43+D44 -> 23.72671364 | E39: 21540.1548 | F39: 1058.35331 | G39: 1351.606629 | H39: 116.3402258 | I39: 0 | J39: 0.03554279646 | K39: 0.01673890971 | L39: 6.583835199 | M39: 0.4673513379 | N39: 511.1758204 | O39: 37157.12854 | P39: 65.69640511 | Q39: 73153.94001 | R39: 34247.85153 | S39: 20683.46685 | T39: 367.6111858 | U39: 134443.5738 | V39: 791.688529 | W39: 21653.47097 | X39: 0.2589011048 | Y39: 19.16081563 | Z39: 2064.15237 | AA39: 0 | AB39: 0 | AC39: 339.4431294 | AD39: 349595.904 | AE39: 2
A40: Equipos de Fuerza (Planta Energía Eléctrica) | B40: NOTA 2 | C40: 30151 | D40: 2.756023119 | E40: 2502.039073 | F40: 122.9351117 | G40: 175.2454684 | H40: 15.08434254 | I40: 0 | J40: 0.004128543473 | K40: 0.001944341001 | L40: 0.8536413326 | M40: 0.06059544428 | N40: 24.70643464 | O40: 1795.899045 | P40: 12.11092104 | Q40: 13485.69363 | R40: 3513.4272 | S40: 2547.738013 | T40: 0.3589965096 | U40: 16566.34201 | V40: 566.8633989 | W40: 2667.220707 | X40: 0 | Y40: 14.53862763 | Z40: 1566.214261 | AA40: 0 | AB40: 0 | AC40: 0 | AD40: 45580.09357 | AE40: 2
A41: Sistemas de Gestión de Red | B41: NOTA 2 | C41: 30152 | D41: 0.01666121277 | E41: 15.12578218 | F41: 0.7431897211 | G41: 0.06796750195 | H41: 0.005850337188 | I41: 0 | J41: 2.495862273e-05 | K41: 1.175428424e-05 | L41: 0.0003310777132 | M41: 2.350144066e-05 | N41: 1.129154904 | O41: 82.07773577 | P41: 0.7544898044 | Q41: 840.1358004 | R41: 6231.887606 | S41: 5008.614907 | T41: 12.44877224 | U41: 32618.60927 | V41: 10.88209346 | W41: 5243.506721 | X41: 0 | Y41: 0.206552315 | Z41: 22.25142493 | AA41: 0 | AB41: 0 | AC41: 0 | AD41: 50088.46438 | AE41: 2
A42: Equipos para Interconexión | B42: NOTA 2 | C42: 30153 | D42: 0 | E42: 0 | F42: 0 | G42: 0 | H42: 0 | I42: 0 | J42: 0 | K42: 0 | L42: 0 | M42: 0 | N42: 0 | O42: 0 | P42: 0 | Q42: 0 | R42: 0 | S42: 0 | T42: 0 | U42: 0 | V42: 0 | W42: 0 | X42: 0 | Y42: 0 | Z42: 0 | AA42: 0 | AB42: 0 | AC42: 0 | AD42: 0 | AE42: 2
A43: Equipos para Circuitos Alquilados | B43: NOTA 2 | C43: 30154 | D43: 0 | E43: 0 | F43: 0 | G43: 0 | H43: 0 | I43: 0 | J43: 0 | K43: 0 | L43: 0 | M43: 0 | N43: 0 | O43: 0 | P43: 0 | Q43: 0 | R43: 0 | S43: 0 | T43: 0 | U43: 0 | V43: 0 | W43: 0 | X43: 0 | Y43: 0 | Z43: 0 | AA43: 0 | AB43: 0 | AC43: 0 | AD43: 0 | AE43: 2
A44: Otros | B44: NOTA 2 | C44: 30155 | D44: 20.95402931 | E44: 19022.98994 | F44: 934.675009 | G44: 1176.293193 | H44: 101.2500329 | I44: 0 | J44: 0.03138929436 | K44: 0.01478281443 | L44: 5.729862788 | M44: 0.4067323922 | N44: 485.3402309 | O44: 35279.15176 | P44: 52.83099426 | Q44: 58828.11059 | R44: 24502.53673 | S44: 13127.11393 | T44: 354.803417 | U44: 85258.62253 | V44: 213.9430367 | W44: 13742.74354 | X44: 0.2589011048 | Y44: 4.415635678 | Z44: 475.6866841 | AA44: 0 | AB44: 0 | AC44: 339.4431294 | AD44: 253927.3461 | AE44: 2
A45: Terreno, Edificios, Planta y Equipos no de Telecomunicaciones | B45: NOTA 2 | C45: 302 | D45: =+D46+D47+D48+D49+D50+D51+D52 -> 100.0092152 | E45: 90792.76668 | F45: 4461.009035 | G45: 2277.765902 | H45: 196.0598547 | I45: 0 | J45: 0.1498145606 | K45: 0.07055529257 | L45: 11.09526618 | M45: 0.7875937563 | N45: 889.7889506 | O45: 64678.33784 | P45: 90.37825382 | Q45: 100637.5516 | R45: 178814.2612 | S45: 81450.38796 | T45: 153.5952447 | U45: 524629.5283 | V45: 812.9335699 | W45: 85270.21236 | X45: 0 | Y45: 56.32776778 | Z45: 6068.066081 | AA45: 0 | AB45: 0 | AC45: 0 | AD45: 1141391.083 | AE45: 2
A46: Terrenos | B46: NOTA 2 | C46: 3021 | D46: 80.07165697 | E46: 72692.57396 | F46: 3571.674717 | G46: 1820.246293 | H46: 156.6786225 | I46: 0 | J46: 0.1199479476 | K46: 0.05648958624 | L46: 8.866634242 | M46: 0.6293950639 | N46: 704.3609463 | O46: 51199.66394 | P46: 67.77307223 | Q46: 75466.34024 | R46: 48206.32189 | S46: 13667.14386 | T46: 0.152884725 | U46: 86662.66201 | V46: 497.1852115 | W46: 14308.09955 | X46: 0 | Y46: 42.09410091 | Z46: 4534.70457 | AA46: 0 | AB46: 0 | AC46: 0 | AD46: 373687.42 | AE46: 2
A47: Edificios | B47: NOTA 2 | C47: 3022 | D47: 18.48729242 | E47: 16783.57764 | F47: 824.643793 | G47: 412.3345215 | H47: 35.49190297 | I47: 0 | J47: 0.02769410385 | K47: 0.01304256136 | L47: 2.008530055 | M47: 0.1425748337 | N47: 170.5246066 | O47: 12395.35297 | P47: 20.00230838 | Q47: 22272.87269 | R47: 78014.57339 | S47: 34974.75255 | T47: 75.99226271 | U47: 225181.7235 | V47: 237.721967 | W47: 36614.98307 | X47: 0 | Y47: 11.86873454 | Z47: 1278.592572 | AA47: 0 | AB47: 0 | AC47: 0 | AD47: 429325.6877 | AE47: 2
A48: Vehículos y Ayudas Mecánicas | B48: NOTA 2 | C48: 3023 | D48: 0.1979304474 | E48: 179.6899706 | F48: 8.828881546 | G48: 9.363667452 | H48: 0.805982423 | I48: 0 | J48: 0.0002965013069 | K48: 0.0001396375384 | L48: 0.04561152784 | M48: 0.003237719037 | N48: 1.634738026 | O48: 118.8283337 | P48: 0.2919804171 | Q48: 325.1246074 | R48: 1175.512286 | S48: 276.4728062 | T48: 0.004310057301 | U48: 1738.7396 | V48: 7.03671001 | W48: 289.438706 | X48: 0 | Y48: 0.3301779048 | Z48: 35.56933682 | AA48: 0 | AB48: 0 | AC48: 0 | AD48: 4167.91931 | AE48: 2
A49: Equipos Sistemas Informáticos | B49: NOTA 2 | C49: 3024 | D49: 0.3873685928 | E49: 351.6702557 | F49: 17.27895564 | G49: 13.78910643 | H49: 1.186904326 | I49: 0 | J49: 0.0005802810813 | K49: 0.0002732838604 | L49: 0.06716836271 | M49: 0.004767923745 | N49: 3.309093588 | O49: 240.5364473 | P49: 0.4802197203 | Q49: 534.7319165 | R49: 3104.590539 | S49: 302.8634047 | T49: 0.00571458342 | U49: 1768.991942 | V49: 9.851546688 | W49: 317.0669591 | X49: 0 | Y49: 0.4636038778 | Z49: 49.94302235 | AA49: 0 | AB49: 0 | AC49: 0 | AD49: 6717.21979 | AE49: 2
A50: Edificios en arrendamiento financiero | B50: NOTA 2 | C50: 3025 | D50: 0.05697191323 | E50: 51.72161002 | F50: 2.541288013 | G50: 0.280591655 | H50: 0.02415206895 | I50: 0 | J50: 8.534435684e-05 | K50: 4.019299621e-05 | L50: 0.001366795024 | M50: 9.702148731e-05 | N50: 2.459393613 | O50: 178.7721581 | P50: 0.8980931616 | Q50: 1000.040309 | R50: 25898.80043 | S50: 20815.06056 | T50: 51.73507337 | U50: 135558.1014 | V50: 45.01638459 | W50: 21791.23609 | X50: 0 | Y50: 0.8544530965 | Z50: 92.0483459 | AA50: 0 | AB50: 0 | AC50: 0 | AD50: 205489.6489 | AE50: 2
A51: Otros activos bajo la forma de arrendamiento o leasing | B51: NOTA 2 | C51: 3026 | D51: 0.01243728329 | E51: 11.29111311 | F51: 0.5547772078 | G51: 0.1046159369 | H51: 0.009004869806 | I51: 0 | J51: 1.863114443e-05 | K51: 8.774353046e-06 | L51: 0.0005095965595 | M51: 3.617354121e-05 | N51: 0.4585839502 | O51: 33.33425037 | P51: 0.162027643 | Q51: 180.4202294 | R51: 15735.50769 | S51: 10528.45111 | T51: 24.96313159 | U51: 68368.49792 | V51: 8.037150269 | W51: 11022.20977 | X51: 0 | Y51: 0.1535490663 | Z51: 16.54150195 | AA51: 0 | AB51: 0 | AC51: 0 | AD51: 105930.7094 | AE51: 2
A52: Otros Activos no de comunicaciones | B52: NOTA 2 | C52: 3027 | D52: 0.7955575272 | E52: 722.2421337 | F52: 35.48662302 | G52: 21.6471058 | H52: 1.863285606 | I52: 0 | J52: 0.001191751192 | K52: 0.0005612562202 | L52: 0.1054456039 | M52: 0.007485020897 | N52: 7.041588563 | O52: 511.8497411 | P52: 0.7705522721 | Q52: 858.021601 | R52: 6678.954922 | S52: 885.6436824 | T52: 0.7418676115 | U52: 5350.81195 | V52: 8.084599855 | W52: 927.1782094 | X52: 0 | Y52: 0.5631483793 | Z52: 60.66673176 | AA52: 0 | AB52: 0 | AC52: 0 | AD52: 16072.47798 | AE52: 2
A53: Activos Intangibles | B53: NOTA 2 | C53: 31 | D53: =+D54+D55+D56+D57+D58+D59 -> 1.866464613 | E53: 1694.458715 | F53: 83.25548292 | G53: 123.5392714 | H53: 10.63370541 | I53: 0 | J53: 0.002795978105 | K53: 0.001316768227 | L53: 0.6017743521 | M53: 0.04271675097 | N53: 42.40959092 | O53: 3082.733099 | P53: 27.59454305 | Q53: 30726.94074 | R53: 58393.72686 | S53: 45211.55743 | T53: 112.0900356 | U53: 294279.5004 | V53: 505.215849 | W53: 47331.86912 | X53: 0 | Y53: 12.27253752 | Z53: 1322.093376 | AA53: 0 | AB53: 0 | AC53: 0 | AD53: 482962.4058 | AE53: 2
A54: Concesiones | B54: NOTA 2 | C54: 311 | D54: 0.08137567076 | E54: 73.87641506 | F54: 3.629841529 | G54: 0.7310954806 | H54: 0.06292941413 | I54: 0 | J54: 0.0001219013702 | K54: 5.740955221e-05 | L54: 0.003561252259 | M54: 0.0002527942996 | N54: 6.994863726 | O54: 508.4533348 | P54: 7.537279052 | Q54: 8392.874142 | R54: 28666.40399 | S54: 23039.40434 | T54: 57.30188175 | U54: 150044.1423 | V54: 106.9421136 | W54: 24119.89617 | X54: 0 | Y54: 2.030259563 | Z54: 218.715381 | AA54: 0 | AB54: 0 | AC54: 0 | AD54: 235249.0817 | AE54: 2
A55: Licencias | B55: NOTA 2 | C55: 312 | D55: 1.674655336 | E55: 1520.325812 | F55: 74.69964217 | G55: 121.2268342 | H55: 10.43466121 | I55: 0 | J55: 0.002508646358 | K55: 0.0011814491 | L55: 0.5905101983 | M55: 0.04191716878 | N55: 25.45149001 | O55: 1850.056767 | P55: 10.10871207 | Q55: 11256.20367 | R55: 18043.56049 | S55: 14501.74518 | T55: 36.14447177 | U55: 94442.62904 | V55: 252.6259565 | W55: 15181.84163 | X55: 0 | Y55: 7.46318188 | Z55: 803.9921091 | AA55: 0 | AB55: 0 | AC55: 0 | AD55: 158140.8204 | AE55: 2
A56: Patentes y propiedad intelectual | B56: NOTA 2 | C56: 313 | D56: 0 | E56: 0 | F56: 0 | G56: 0 | H56: 0 | I56: 0 | J56: 0 | K56: 0 | L56: 0 | M56: 0 | N56: 0 | O56: 0 | P56: 0 | Q56: 0 | R56: 0 | S56: 0 | T56: 0 | U56: 0 | V56: 0 | W56: 0 | X56: 0 | Y56: 0 | Z56: 0 | AA56: 0 | AB56: 0 | AC56: 0 | AD56: 0 | AE56: 2
A57: Software | B57: NOTA 2 | C57: 314 | D57: 0.003997203174 | E57: 3.628836948 | F57: 0.1782991642 | G57: 0.557444564 | H57: 0.04798232345 | I57: 0 | J57: 5.987840581e-06 | K57: 2.819978529e-06 | L57: 0.002715378176 | M57: 0.000192750211 | N57: 0.06304332882 | O57: 4.582589745 | P57: 0.1051244187 | Q57: 117.0576291 | R57: 2392.055546 | S57: 202.5932863 | T57: 0.003805301831 | U57: 1158.579256 | V57: 5.989235076 | W57: 212.094417 | X57: 0 | Y57: 0.1260690047 | Z57: 13.58113558 | AA57: 0 | AB57: 0 | AC57: 0 | AD57: 4111.250615 | AE57: 2
A58: Investigación y Desarrollo | B58: NOTA 2 | C58: 315 | D58: 0 | E58: 0 | F58: 0 | G58: 0 | H58: 0 | I58: 0 | J58: 0 | K58: 0 | L58: 0 | M58: 0 | N58: 0 | O58: 0 | P58: 0 | Q58: 0 | R58: 0 | S58: 0 | T58: 0 | U58: 0 | V58: 0 | W58: 0 | X58: 0 | Y58: 0 | Z58: 0 | AA58: 0 | AB58: 0 | AC58: 0 | AD58: 0 | AE58: 2
A59: Otros Activos Intangibles | B59: NOTA 2 | C59: 316 | D59: 0.1064364033 | E59: 96.62765094 | F59: 4.74770006 | G59: 1.023897092 | H59: 0.08813246127 | I59: 0 | J59: 0.000159442537 | K59: 7.508959614e-05 | L59: 0.00498752342 | M59: 0.0003540376806 | N59: 9.900193855 | O59: 719.6404073 | P59: 9.843427511 | Q59: 10960.80531 | R59: 9291.706844 | S59: 7467.814627 | T59: 18.63987674 | U59: 48634.14975 | V59: 139.6585438 | W59: 7818.036905 | X59: 0 | Y59: 2.653027071 | Z59: 285.8047499 | AA59: 0 | AB59: 0 | AC59: 0 | AD59: 85461.25305 | AE59: 2
A60: Otros Activos No Corrientes | B60: NOTA 2 | C60: 32 | D60: 0 | E60: 0 | F60: 0 | G60: 0 | H60: 0 | I60: 0 | J60: 0 | K60: 0 | L60: 0 | M60: 0 | N60: 0 | O60: 0 | P60: 0 | Q60: 0 | R60: 42376.65704 | S60: 33960.3171 | T60: 82.6526389 | U60: 221157.4228 | V60: 0 | W60: 35552.97309 | X60: 0 | Y60: 0 | Z60: 0 | AA60: 0 | AB60: 0 | AC60: 0 | AD60: 333130.0227 | AE60: 2

Sheet NOTA 2
A1: AMERICA MOVIL PERU S.A.C
A2: Anexo 2
A3: Homologación Plan Contable Regulatorio y Plan Contable
A4: Código PCR | B4: Descripción Código PCR | C4: Cta Local PCGE | D4: Nombre de la cta
A5: 30111 | B5: Equipos terminales -Teléfonos de Abonados | C5: 3362102139 | D5: CPE - MANTENIMIENTO CLIENTES
A6: 30111 | B6: Equipos terminales -Teléfonos de Abonados | C6: 3362101005 | D6: CPE - CABLE MODEM CLIENTE
A7: 30112 | B7: Equipos terminales -Teléfonos Públicos | C7: 3369101000 | D7: TELEFONIA PUBLICA RURAL TPR
A8: 30112 | B8: Equipos terminales -Teléfonos Públicos | C8: 3362101007 | D8: PTE - EQUIPO PARA TELEFONIA PUBLICA
A9: 30112 | B9: Equipos terminales -Teléfonos Públicos | C9: 3362101723 | D9: PTE - EQUIPO MTTO. TPI/TPE
A10: 30113 | B10: Equipos Terminales -Televisión de Paga | C10: 3362102142 | D10: CPE - SET TOP BOX
A11: 30113 | B11: Equipos Terminales -Televisión de Paga | C11: 3362102139 | D11: CPE - MANTENIMIENTO CLIENTES
A12: 30113 | B12: Equipos Terminales -Televisión de Paga | C12: 3362102138 | D12: CPE - ANTENAS CLIENTES
A13: 30113 | B13: Equipos Terminales -Televisión de Paga | C13: 3362102140 | D13: CPE - LNB ABONADO
A14: 30114 | B14: Equipos Terminales -Internet Fijo | C14: 3362101003 | D14: CPE - EQUIPO CPE CLIENTES
A15: 30114 | B15: Equipos Terminales -Internet Fijo | C15: 3362102139 | D15: CPE - MANTENIMIENTO CLIENTES
A16: 30114 | B16: Equipos Terminales -Internet Fijo | C16: 3362101005 | D16: CPE - CABLE MODEM CLIENTE
A17: 30115 | B17: Equipos Terminales -Telefonía Móvil | C17: 3369102000 | D17: MSC - CELULARES CLIENTES BUSINESS
A18: 30115 | B18: Equipos Terminales -Telefonía Móvil | C18: 3369102200 | D18: MSC - CELULARES CLIENTES CONSUMER
A19: 3012 | B19: Planta y Equipo de Acceso Local | C19: 3362102144 | D19: UM - ACOMETIDAS/INSTALACION EN CLIENTES
A20: 3012 | B20: Planta y Equipo de Acceso Local | C20: 3362101031 | D20: UM - ACOPLADORES DE RED
A21: 3012 | B21: Planta y Equipo de Acceso Local | C21: 3362101116 | D21: UM - AMPLIFICADORES
A22: 3012 | B22: Planta y Equipo de Acceso Local | C22: 3362101117 | D22: UM - ANTENAS RECEPTORAS
A23: 30132 | B23: Centrales de Larga Distancia Nacional | C23: 3362101001 | D23: CX - CENTRALES TELEFONICAS ( SOFTSWITCH )
A24: 30132 | B24: Centrales de Larga Distancia Nacional | C24: 3362101011 | D24: CONMUTADORES PARA DATOS
A25: 30133 | B25: Centrales de Larga Distancia Internacional | C25: 3362101001 | D25: CX - CENTRALES TELEFONICAS ( SOFTSWITCH )
A26: 30133 | B26: Centrales de Larga Distancia Internacional | C26: 3362101011 | D26: CONMUTADORES PARA DATOS
A27: 30134 | B27: Controladores | C27: 3362101000 | D27: BASE STATION CONTROLLER (BSC)
A28: 30134 | B28: Controladores | C28: 3362101016 | D28: CENTRAL DE DATOS GPRS
A29: 30134 | B29: Controladores | C29: 3362101018 | D29: MSC SERVER
A30: 30134 | B30: Controladores | C30: 3362101019 | D30: RADIO NETWORK CONTROLLER
A31: 30134 | B31: Controladores | C31: 3362101035 | D31: CENTRAL DE DATOS 4G
A32: 30134 | B32: Controladores | C32: 3362101108 | D32: PTI - CONTROLADORES CMTS
A33: 30135 | B33: Gateways | C33: 3362101017 | D33: MEDIA GATEWAY
A34: 30135 | B34: Gateways | C34: 3362101138 | D34: PTI - CONVERSORES
A35: 30136 | B35: Cabeceras | C35: 3362101107 | D35: PTI - CODIFICADORES/DECODIFICADORES
A36: 30136 | B36: Cabeceras | C36: 3362101030 | D36: PTI - EQUIPO DE CABECERA
A37: 30136 | B37: Cabeceras | C37: 3362101110 | D37: PTI - GABINETES/CHASIS/RACKS
A38: 30136 | B38: Cabeceras | C38: 3362101112 | D38: PTI - MODULADORES/DEMODULADORES
A39: 30137 | B39: Transmisión de Datos (Servicio Final) | C39: 3362101109 | D39: PTI - EQUIPO DE ACCESO A RED DE DATOS
A40: 30137 | B40: Transmisión de Datos (Servicio Final) | C40: 3362101114 | D40: PTI - SWITCHES
A41: 30137 | B41: Transmisión de Datos (Servicio Final) | C41: 3362101123 | D41: RUTEADORES CELULARES
A42: 30141 | B42: Cables de Transmisión (excluidos internacional) | C42: 3362101026 | D42: PTE - CABLE DE FIBRA OPTICA
A43: 30141 | B43: Cables de Transmisión (excluidos internacional) | C43: 3324102309 | D43: PTE - CABLE DE COBRE
A44: 30141 | B44: Cables de Transmisión (excluidos internacional) | C44: 3324102300 | D44: TX - CABLE DE FIBRA ÓPTICA
A45: 30141 | B45: Cables de Transmisión (excluidos internacional) | C45: 3362101009 | D45: PTE - CABLE COAXIAL
A46: 30142 | B46: Equipos de Transmisión (excluidos internacional) | C46: 3362101238 | D46: PTE - NODOS OPTICOS
A47: 30142 | B47: Equipos de Transmisión (excluidos internacional) | C47: 3362101115 | D47: PTI - TRANSMISORES OPTICOS
A48: 30142 | B48: Equipos de Transmisión (excluidos internacional) | C48: 3362101139 | D48: TX - CONMUTADORES PARA DATOS
A49: 30142 | B49: Equipos de Transmisión (excluidos internacional) | C49: 3362101140 | D49: TX - EQUIPO OPTICO
A50: 30142 | B50: Equipos de Transmisión (excluidos internacional) | C50: 3362101141 | D50: TX - GABINETES/CHASIS/RACKS
A51: 30142 | B51: Equipos de Transmisión (excluidos internacional) | C51: 3362101014 | D51: TX - MULTIPLEXOR EST.IMPU
A52: 30142 | B52: Equipos de Transmisión (excluidos internacional) | C52: 3362101122 | D52: MULTIPLEXORES
A53: 30142 | B53: Equipos de Transmisión (excluidos internacional) | C53: 3362101143 | D53: TX - ROUTERS
A54: 30142 | B54: Equipos de Transmisión (excluidos internacional) | C54: 3362101124 | D54: TARJETAS
A55: 30142 | B55: Equipos de Transmisión (excluidos internacional) | C55: 3362101125 | D55: MICROONDAS
A56: 30143 | B56: Equipos de Transmisión Radio | C56: 3362101126 | D56: BASE TRANSCEIVER STATION (BTS)
A57: 30143 | B57: Equipos de Transmisión Radio | C57: 3362101127 | D57: REPETIDORES GSM
A58: 30143 | B58: Equipos de Transmisión Radio | C58: 3362101128 | D58: MICROCELULAS GSM
A59: 30143 | B59: Equipos de Transmisión Radio | C59: 3362101129 | D59: UNIVERSAL MOBILE TELECOMMUNICATIONS SYS
A60: 30143 | B60: Equipos de Transmisión Radio | C60: 3362101130 | D60: REPETIDORES 3G
A61: 30143 | B61: Equipos de Transmisión Radio | C61: 3362101131 | D61: LONG TERM EVOLUTION (4G)
A62: 30144 | B62: Equipos de Transmisión por Satélite | C62: 3362101113 | D62: PTI - RECEPTORES SATELITALES/ÓPTICOS
A63: 30144 | B63: Equipos de Transmisión por Satélite | C63: 3362101142 | D63: TX - RECEPTORES SATELITALES/ÓPTICOS
A64: 30145 | B64: Cables y Equipos internacionales (excluyendo satélite) | C64: 3362101140 | D64: TX - EQUIPO OPTICO
A65: 30145 | B65: Cables y Equipos internacionales (excluyendo satélite) | C65: 3362101122 | D65: MULTIPLEXORES
A66: 30145 | B66: Cables y Equipos internacionales (excluyendo satélite) | C66: 3362101123 | D66: RUTEADORES CELULARES
A67: 30146 | B67: Otros equipos de transmisión | C67: 3362101027 | D67: CANALIZACION
A68: 30146 | B68: Otros equipos de transmisión | C68: 3362101037 | D68: PTE - MULTITAPS
A69: 30146 | B69: Otros equipos de transmisión | C69: 3362101028 | D69: PTE - POSTES
A70: 30146 | B70: Otros equipos de transmisión | C70: 3362101029 | D70: PTE - SPLITERS
A71: 30151 | B71: Equipos de Fuerza (Planta Energía Eléctrica) | C71: 3362101134 | D71: EQUIPO DE FUERZA
A72: 30151 | B72: Equipos de Fuerza (Planta Energía Eléctrica) | C72: 3369101027 | D72: CORRIENTE ALTERNA GPOS. ELECTROGENOS Y TANQ
A73: 30151 | B73: Equipos de Fuerza (Planta Energía Eléctrica) | C73: 3362101136 | D73: FZA - CORRIENTE DIRECTA ENERGIA SOLAR.
A74: 30152 | B74: Sistemas de Gestión de Red | C74: 3362101021 | D74: SERVIDORES
A75: 30152 | B75: Sistemas de Gestión de Red | C75: 3362101013 | D75: SERVIDORES (DATA CENTER)
A76: 30155 | B76: Otros | C76: 3362101012 | D76: MSC - EQUIPO DIVERSO
A77: 30155 | B77: Otros | C77: 3351101038 | D77: MSC - EQUIPO DIVERSO - FIJA
A78: 30155 | B78: Otros | C78: 3362101132 | D78: MV - INSTALAC. EQUIPOS COMUNICAC. ARRENDADOS
A79: 30155 | B79: Otros | C79: 3362101133 | D79: AIRES ACONDICIONADOS
A80: 3021 | B80: Terrenos | C80: 3311101000 | D80: TERRENO
A81: 3021 | B81: Terrenos | C81: 3311101009 | D81: INM - TERRENOS - FIJA
A82: 3022 | B82: Edificios | C82: 3321101000 | D82: EDIFICIOS
A83: 3022 | B83: Edificios | C83: 3324102100 | D83: INM - INSTALACIONES Y MEJORAS
A84: 3022 | B84: Edificios | C84: 3324102000 | D84: INM - OBRAS CIVILES
A85: 3022 | B85: Edificios | C85: 3324102115 | D85: MEJORAS A INMUEBLES ARRENDADOS
A86: 3022 | B86: Edificios | C86: 3321101009 | D86: INM - EDIFICIOS - FIJA
A87: 3023 | B87: Vehículos y Ayudas Mecánicas | C87: 3341101000 | D87: EQUIPO DE TRANSPORTE VEHICULOS
A88: 3023 | B88: Vehículos y Ayudas Mecánicas | C88: 3369101029 | D88: MONTACARGAS
A89: 3023 | B89: Vehículos y Ayudas Mecánicas | C89: 3341101009 | D89: EQT - UNID. TRANSP.-FIJA
A90: 3024 | B90: Equipos Sistemas Informáticos | C90: 3351101000 | D90: EQUIPO DE COMPUTO CENTRAL
A91: 3024 | B91: Equipos Sistemas Informáticos | C91: 3361101000 | D91: EQUIPO DE COMPUTO PERIFERICO
A92: 3024 | B92: Equipos Sistemas Informáticos | C92: 3351101018 | D92: EQC - EQ. COMPUTO - FIJA
A93: 3024 | B93: Equipos Sistemas Informáticos | C93: 3362101033 | D93: CONMUTADORES
A94: 3025 | B94: Edificios en arrendamiento financiero | C94: 3222102212 | D94: INM - LEASING - INST.SITES LSB 2008 - 2013
A95: 3026 | B95: Otros activos bajo la forma de arrendamiento o leasing | C95: 3226101100 | D95: MSC - LEASING - EQ. DIVERSOS LSB 2012 - 2013
A96: 3026 | B96: Otros activos bajo la forma de arrendamiento o leasing | C96: 3222102200 | D96: TX - LEASING - INST.FIBRA OPTICA LSB 2012
A97: 3026 | B97: Otros activos bajo la forma de arrendamiento o leasing | C97: 3226301100 | D97: MV - LEASING - EQ. COMUNIC. LSB 2008 - 2013
A98: 3026 | B98: Otros activos bajo la forma de arrendamiento o leasing | C98: 3226201100 | D98: EQC - LEASING - EQ. COMP. LSB 2012 - 2013
A99: 3027 | B99: Otros Activos no de comunicaciones | C99: 3369101026 | D99: PTI - HERRAMIENTAS MÓVIL
A100: 3027 | B100: Otros Activos no de comunicaciones | C100: 3362101111 | D100: PTI - INSTRUMENTOS
A101: 3027 | B101: Otros Activos no de comunicaciones | C101: 3362101020 | D101: PTI - EQUIPO DE MEDICION MÓVIL
A102: 3027 | B102: Otros Activos no de comunicaciones | C102: 3362101237 | D102: MOBILIARIO Y EQUIPO
A103: 3027 | B103: Otros Activos no de comunicaciones | C103: 3351101002 | D103: MUEBLES Y ENSERES - FIJA
A104: 3027 | B104: Otros Activos no de comunicaciones | C104: 3369099000 | D104: MBL -ACTIVOS MENORES
A105: 311 | B105: Concesiones | C105: 3411101000 | D105: CONCESIONES Y DERECHOS - MÓVIL
A106: 311 | B106: Concesiones | C106: 3419101000 | D106: CONCESIONES Y DERECHOS - FIJA
A107: 312 | B107: Licencias | C107: 3431101000 | D107: LICENCIAS DE SOFTWARE
A108: 312 | B108: Licencias | C108: 3431101009 | D108: LICENCIAS - FIJA
A109: 314 | B109: Software | C109: 3431102000 | D109: DESARROLLO DE SOFTWARE
A110: 314 | B110: Software | C110: 3412101000 | D110: DESARROLLO SW - FIJA
A111: 316 | B111: Otros Activos Intangibles | C111: 3411101010 | D111: IRU PARTES RELACIONADAS
A112: 316 | B112: Otros Activos Intangibles | C112: 3411101011 | D112: IRU TERCEROS
A113: 32 | B113: Otros Activos No Corrientes | C113: 4970201001 | D113: DIFERIDO ACT LEASEB
A114: 32 | B114: Otros Activos No Corrientes | C114: 4970202001 | D114: DIFERIDO ACTIVO LEASEBACK/COSTO
